[Event "3rd HSK Youth Summer 2018"]
[Site "Hamburg"]
[Date "2018.07.26"]
[Round "2"]
[White "Meyling, Lennart"]
[Black "Brockmeyer, Tobias"]
[Result "1/2-1/2"]
[ECO "A83"]
[WhiteElo "2050"]
[BlackElo "1766"]
[Annotator "NA RC"]
[PlyCount "94"]
[EventDate "2018.07.26"]
[EventType "swiss"]
[EventCountry "GER"]
[SourceTitle "playchess.com"]
[Source "ChessBase"]
[SourceQuality "1"]
[TimeControl "40/5400+30:900+30"]

1. d4 f5 2. e4 fxe4 3. Nc3 Nf6 4. Bg5 g6 5. h4 d5 6. h5 Bf5 7. Bxf6 exf6 8. g4 Be6 9. hxg6 Qd7 10. gxh7 Rxh7 11. Rxh7 Qxh7 12. Qe2 c6 13. O-O-O Nd7 14. f3 f5 15. gxf5 Bxf5 16. fxe4 dxe4 17. Nxe4 Bxe4 18. Bg2 Nf6 19. Bxe4 Qxe4 20. Qxe4+ Nxe4 21. Re1 Bh6+ 22. Kd1 O-O-O 23. Rxe4 Kc7 24. Nf3 Rf8 25. Ke2 Rf7 26. Re6 Bf4 27. Kd3 Bc1 28. Ne5 Rg7 29. b3 Rg3+ 30. Ke4 Rg2 31. Re7+ Kb6 32. Nd7+ Ka5 33. Ne5 Ka6 34. d5 cxd5+ 35. Kxd5 Rxc2 36. Nd7 Ba3 37. Re4 Rd2+ 38. Rd4 Rxa2 39. Ra4+ Kb5 40. Ke4 Re2+ 41. Kd3 Re7 42. Nf6 Bc5 43. Ne4 Rd7+ 44. Kc3 a6 45. Rc4 Rc7 46. Kb2 Rc6 47. Nc3+ Ka5 1/2-1/2

[Event "3rd HSK Youth Summer 2018"]
[Site "Hamburg"]
[Date "2018.07.26"]
[Round "2"]
[White "Grabbel, Lennart Christian"]
[Black "Zemach, Roee"]
[Result "0-1"]
[ECO "A33"]
[WhiteElo "1832"]
[BlackElo "2101"]
[Annotator "RC"]
[PlyCount "88"]
[EventDate "2018.07.26"]
[EventType "swiss"]
[EventCountry "GER"]
[SourceTitle "playchess.com"]
[Source "ChessBase"]
[SourceQuality "1"]
[TimeControl "40/5400+30:900+30"]

1. Nf3 {[%emt 0:00:00]} Nf6 {[%emt 0:00:00]} 2. d4 {[%emt 0:00:00]} e6 {[%emt 0:00:02]} 3. c4 {[%emt 0:00:00]} c5 {[%emt 0:00:22]} 4. Nc3 {[%emt 0:00:53]} cxd4 {[%emt 0:00:40]} 5. Nxd4 {[%emt 0:00:05]} Nc6 {[%emt 0:00:59]} 6. e4 {[%emt 0:01:01]} Bb4 {[%emt 0:01:34]} 7. f3 {[%emt 0:03:20]} O-O {[%emt 0:01:28]} 8. Be2 {[%emt 0:02:23]} d6 {[%emt 0:06:55]} 9. Be3 {[%emt 0:05:42]} Nxd4 {[%emt 0:02:29]} 10. Bxd4 {[%emt 0:02:48]} e5 {[%emt 0:01:36]} 11. Be3 {[%emt 0:00:06]} Be6 {[%emt 0:00:17]} 12. Rc1 {[%emt 0:05:20]} Rc8 {[%emt 0:04:35]} 13. Qb3 {[%emt 0:10:59]} Qa5 {[%emt 0:05:26]} 14. a3 {[%emt 0:09:06]} Bc5 {[%emt 0:01:05]} 15. Bxc5 {[%emt 0:00:13]} Qxc5 {[%emt 0:00:14]} 16. Na4 {[%emt 0:00:06]} Qa5+ {[%emt 0:00:55]} 17. Nc3 {[%emt 0:01:00]} Rc6 {[%emt 0:09:52]} 18. O-O {[%emt 0:03:12]} Rfc8 {[%emt 0:00:41]} 19. Nd5 {[%emt 0:00:36]} Nxd5 {[%emt 0:04:53]} 20. exd5 {[%emt 0:01:17]} Bxd5 {[%emt 0:01:02]} 21. Qxb7 {[%emt 0:00:09]} R6c7 {[%emt 0:16:02]} 22. Qb3 {[%emt 0:03:34]} Bxc4 {[%emt 0:01:51]} 23. Bxc4 {[%emt 0:06:56]} d5 {[%emt 0:00:56]} 24. Rfd1 {[%emt 0:00:07]} dxc4 {[%emt 0:00:55]} 25. Qe3 {[%emt 0:02:23]} f6 {[%emt 0:04:51]} 26. Rc3 {[%emt 0:01:58]} Qb5 {[%emt 0:03:48]} 27. Qe2 {[%emt 0:01:35]} a5 {[%emt 0:03:36]} 28. h3 {[%emt 0:07:59]} a4 {[%emt 0:00:28]} 29. Qd2 {[%emt 0:00:40]} Rb7 {[%emt 0:02:02]} 30. Kh2 {[%emt 0:02:27]} Rbb8 {[%emt 0:01:36]} 31. Rc2 {[%emt 0:02:16]} Rc5 {[%emt 0:05:12]} 32. Qe2 {[%emt 0:01:51]} Rbc8 {[%emt 0:01:53]} 33. Rc3 {[%emt 0:00:19]} Rd5 {[%emt 0:00:41]} 34. Rxd5 {[%emt 0:05:04]} Qxd5 {[%emt 0:00:06]} 35. Qc2 {[%emt 0:00:06]} Qc6 {[%emt 0:00:18]} 36. Qd2 {[%emt 0:01:29]} Kf7 {[%emt 0:03:18]} 37. Qc2 {[%emt 0:01:45]} h6 {[%emt 0:02:21]} 38. Qd2 {[%emt 0:01:57]} Kf8 {[%emt 0:03:48]} 39. Rc1 {[%emt 0:00:30]} Kf7 {[%emt 0:01:43]} 40. Rd1 {[%emt 0:00:57]} Rb8 {[%emt 0:01:26]} 41. Qc2 {[%emt 0:16:55]} Rb7 {[%emt 0:16:30]} 42. Rc1 {[%emt 0:03:07]} Rc7 {[%emt 0:00:13]} 43. Rd1 {[%emt 0:00:11]} Qb5 {[%emt 0:04:08]} 44. Rd2 {[%emt 0:02:07]} g6 {[%emt 0:00:00]} 0-1

[Event "3rd HSK Youth Summer 2018"]
[Site "Hamburg"]
[Date "2018.07.26"]
[Round "2"]
[White "Shocron, Alon"]
[Black "Sulayev, Daniel"]
[Result "1-0"]
[ECO "A04"]
[WhiteElo "1817"]
[BlackElo "2049"]
[Annotator "NA RC"]
[PlyCount "67"]
[EventDate "2018.07.26"]
[EventType "swiss"]
[EventCountry "GER"]
[SourceTitle "playchess.com"]
[Source "ChessBase"]
[SourceQuality "1"]
[TimeControl "40/5400+30:900+30"]

1. Nf3 c5 2. c4 Nc6 3. d4 cxd4 4. Nxd4 g6 5. g3 Bg7 6. Nb3 a5 7. Nc5 d6 8. Nd3 Be6 9. Qa4 Bd7 10. Bg2 Nb4 11. Qb3 Nxd3+ 12. exd3 Bc6 13. O-O Nf6 14. Be3 a4 15. Qb4 Nd7 16. d4 Bxg2 17. Kxg2 Qb6 18. Qxb6 Nxb6 19. Na3 O-O 20. b3 Rfc8 21. Nb5 Nd7 22. Rfe1 Bf6 23. Rec1 Ra6 24. b4 a3 25. Rab1 Ra4 26. c5 Ra6 27. cxd6 Rxc1 28. Rxc1 Rb6 29. Rc8+ Kg7 30. Nc7 g5 31. dxe7 Bxe7 32. Nd5 Re6 33. Nxe7 Rxe7 34. Rc7 1-0

[Event "3rd HSK Youth Summer 2018"]
[Site "Hamburg"]
[Date "2018.07.26"]
[Round "2"]
[White "Rozin, Yoav"]
[Black "Stelmaszyk, Nico"]
[Result "1-0"]
[ECO "D00"]
[WhiteElo "1722"]
[BlackElo "1975"]
[Annotator "NA RC"]
[PlyCount "63"]
[EventDate "2018.07.26"]
[EventType "swiss"]
[EventCountry "GER"]
[SourceTitle "playchess.com"]
[Source "ChessBase"]
[SourceQuality "1"]
[TimeControl "40/5400+30:900+30"]

1. d4 {[%emt 0:00:00]} d5 {[%emt 0:00:00]} 2. e4 {[%emt 0:00:00]} dxe4 {[%emt 0:01:48]} 3. Nc3 {[%emt 0:00:00]} Bf5 {[%emt 0:02:11]} 4. f3 {[%emt 0:00:00]} exf3 {[%emt 0:31:41]} 5. Qxf3 {[%emt 0:00:26]} Qc8 {[%emt 0:01:12]} 6. Bc4 {[%emt 0:08:02]} e6 {[%emt 0:02:10]} 7. Qe2 {[%emt 0:10:39]} Bb4 {[%emt 0:02:27]} 8. g4 {[%emt 0:11:20]} Bg6 {[%emt 0:12:32]} 9. d5 {[%emt 0:00:38]} e5 {[%emt 0:03:06]} 10. Qxe5+ {[%emt 0:02:06]} Kf8 {[%emt 0:00:25]} 11. Qf4 {[%emt 0:05:17]} Nf6 {[%emt 0:05:07]} 12. h3 {[%emt 0:07:40]} Be4 {[%emt 0:12:05]} 13. g5 {[%emt 0:16:17]} Nxd5 {[%emt 0:04:59]} 14. Bxd5 {[%emt 0:05:44]} Bxc3+ {[%emt 0:00:14]} 15. bxc3 {[%emt 0:00:02]} Bxd5 {[%emt 0:00:08]} 16. Rh2 {[%emt 0:01:24]} Kg8 {[%emt 0:06:09]} 17. c4 {[%emt 0:01:49]} Bc6 {[%emt 0:01:17]} 18. Bb2 {[%emt 0:00:40]} h6 {[%emt 0:01:53]} 19. Qd4 {[%emt 0:03:03]} Qe6+ {[%emt 0:01:19]} 20. Ne2 {[%emt 0:08:49]} Qg6 {[%emt 0:01:51]} 21. O-O-O {[%emt 0:01:30]} hxg5 {[%emt 0:01:44]} 22. h4 {[%emt 0:04:00]} Nd7 {[%emt 0:01:32]} 23. h5 {[%emt 0:00:58]} Qh6 {[%emt 0:00:08]} 24. Ng3 {[%emt 0:00:46]} Qf6 {[%emt 0:00:46]} 25. Qxd7 {[%emt 0:03:20]} Qf4+ {[%emt 0:00:09]} 26. Qd2 {[%emt 0:00:04]} Qxg3 {[%emt 0:00:05]} 27. Kb1 {[%emt 0:00:31]} Bf3 {[%emt 0:00:49]} 28. Rf1 {[%emt 0:01:54]} Rxh5 {[%emt 0:00:58]} 29. Qc3 {[%emt 0:01:02]} f6 {[%emt 0:02:47]} 30. Rxh5 {[%emt 0:00:02]} g4 {[%emt 0:00:23]} 31. c5 {[%emt 0:00:53]} Qg2 {[%emt 0:00:13]} 32. Qc4+ {[%emt 0:00:45]} 1-0

[Event "3rd HSK Youth Summer 2018"]
[Site "Hamburg"]
[Date "2018.07.26"]
[Round "3"]
[White "Globus, Or"]
[Black "Rozin, Yoav"]
[Result "1-0"]
[ECO "A86"]
[WhiteElo "2351"]
[BlackElo "1722"]
[Annotator "NA"]
[PlyCount "83"]
[EventDate "2018.07.26"]
[EventType "swiss"]
[EventCountry "GER"]
[SourceTitle "playchess.com"]
[Source "ChessBase"]
[SourceQuality "1"]
[TimeControl "40/5400+30:900+30"]

1. d4 {[%emt 0:00:00]} f5 {[%emt 0:00:00]} 2. c4 {[%emt 0:00:41]} Nf6 {[%emt 0:00:07]} 3. g3 {[%emt 0:00:19]} g6 {[%emt 0:00:07]} 4. Bg2 {[%emt 0:00:20]} Bg7 5. Nh3 {[%emt 0:00:25]} d6 {[%emt 0:02:12]} 6. d5 {[%emt 0:05:21]} c6 {[%emt 0:02:54]} 7. Nc3 {[%emt 0:00:10]} e5 {[%emt 0:01:37]} 8. dxe6 {[%emt 0:00:48]} Bxe6 {[%emt 0:00:15]} 9. b3 {[%emt 0:01:14]} O-O {[%emt 0:05:02]} 10. O-O {[%emt 0:02:51]} Ne4 {[%emt 0:05:04]} 11. Nxe4 {[%emt 0:00:10]} fxe4 {[%emt 0:03:54]} 12. Rb1 {[%emt 0:04:00]} Bf5 {[%emt 0:01:44]} 13. Nf4 {[%emt 0:07:14]} Na6 {[%emt 0:02:53]} 14. Bb2 {[%emt 0:03:24]} Bxb2 {[%emt 0:02:09]} 15. Rxb2 {[%emt 0:00:02]} Qf6 {[%emt 0:00:05]} 16. Rd2 {[%emt 0:00:07]} Rad8 {[%emt 0:00:25]} 17. e3 {[%emt 0:00:56]} g5 {[%emt 0:09:13]} 18. Ne2 {[%emt 0:02:55]} Nc5 {[%emt 0:00:20]} 19. Rd4 {[%emt 0:06:01]} Rfe8 {[%emt 0:08:07]} 20. b4 {[%emt 0:09:16]} Nd3 {[%emt 0:07:18]} 21. f3 {[%emt 0:01:38]} exf3 {[%emt 0:02:39]} 22. Bxf3 {[%emt 0:00:17]} Rxe3 {[%emt 0:03:21]} 23. Bg4 {[%emt 0:02:28]} Rxe2 {[%emt 0:05:25]} 24. Rxd3 {[%emt 0:00:41]} Re5 {[%emt 0:00:11]} 25. Qf3 {[%emt 0:04:58]} Rf8 {[%emt 0:01:35]} 26. Bxf5 {[%emt 0:00:08]} Rxf5 {[%emt 0:00:48]} 27. Qxf5 {[%emt 0:00:09]} Qxf5 {[%emt 0:00:37]} 28. Rxf5 {[%emt 0:00:01]} Rxf5 {[%emt 0:00:01]} 29. Rxd6 {[%emt 0:00:03]} Kg7 {[%emt 0:01:02]} 30. Kg2 {[%emt 0:00:09]} Rf6 {[%emt 0:01:02]} 31. Rd7+ {[%emt 0:00:06]} Rf7 {[%emt 0:00:05]} 32. Rxf7+ {[%emt 0:00:06]} Kxf7 {[%emt 0:00:07]} 33. Kf3 {[%emt 0:00:11]} Ke6 {[%emt 0:01:50]} 34. Ke4 {[%emt 0:05:32]} Kd6 {[%emt 0:22:23]} 35. Kf5 {[%emt 0:03:02]} g4 {[%emt 0:05:53]} 36. a3 {[%emt 0:08:10]} c5 {[%emt 0:01:32]} 37. b5 {[%emt 0:03:33]} a6 {[%emt 0:01:17]} 38. bxa6 {[%emt 0:00:45]} bxa6 {[%emt 0:00:05]} 39. a4 {[%emt 0:00:03]} a5 {[%emt 0:01:15]} 40. Kf6 {[%emt 0:00:17]} h6 {[%emt 0:02:55]} 41. Kf5 {[%emt 0:15:16]} h5 {[%emt 0:15:02]} 42. Ke4 {Kd5+} 1-0

[Event "3rd HSK Youth Summer 2018"]
[Site "Hamburg"]
[Date "2018.07.26"]
[Round "3"]
[White "Zemach, Roee"]
[Black "Apitzsch, Leon Fabian"]
[Result "1-0"]
[ECO "C77"]
[WhiteElo "2101"]
[BlackElo "1958"]
[Annotator "NA"]
[PlyCount "97"]
[EventDate "2018.07.26"]
[EventType "swiss"]
[EventCountry "GER"]
[SourceTitle "playchess.com"]
[Source "ChessBase"]
[SourceQuality "1"]
[TimeControl "40/5400+30:900+30"]

1. e4 e5 2. Nf3 Nc6 3. Bb5 a6 4. Ba4 Nf6 5. d3 Be7 6. Bxc6 bxc6 7. Nxe5 O-O 8. O-O Bb7 9. Nf3 d5 10. e5 Nd7 11. Re1 c5 12. Nbd2 Re8 13. Nf1 f6 14. exf6 Bxf6 15. Bf4 Nf8 16. Rxe8 Qxe8 17. c3 Ne6 18. Bg3 d4 19. c4 Qg6 20. Qe2 Re8 21. Re1 Bc6 22. Qd1 h5 23. h4 Kh7 24. Ne5 Bxe5 25. Rxe5 Kg8 26. Qe2 Bxg2 27. Qxh5 Qxh5 28. Rxh5 Bb7 29. Re5 Kf7 30. Nd2 Rb8 31. b3 Bc6 32. f4 g6 33. Kf2 a5 34. Ne4 Bxe4 35. dxe4 a4 36. f5 gxf5 37. exf5 Ng7 38. Rxc5 axb3 39. axb3 Rxb3 40. Bf4 Rh3 41. Rxc7+ Kg8 42. f6 Nf5 43. f7+ Kf8 44. c5 Rxh4 45. Bd6+ Nxd6 46. cxd6 Rf4+ 47. Ke2 Rxf7 48. d7 Ke7 49. d8=Q+ 1-0

[Event "3rd HSK Youth Summer 2018"]
[Site "Hamburg"]
[Date "2018.07.26"]
[Round "3"]
[White "Ehrlich, Roy"]
[Black "Grabbel, Lennart Christian"]
[Result "1-0"]
[ECO "B41"]
[WhiteElo "1893"]
[BlackElo "1832"]
[Annotator "NA RC"]
[PlyCount "111"]
[EventDate "2018.07.26"]
[EventType "swiss"]
[EventCountry "GER"]
[SourceTitle "playchess.com"]
[Source "ChessBase"]
[SourceQuality "1"]
[TimeControl "40/5400+30:900+30"]

1. e4 {[%emt 0:00:00]} c5 {[%emt 0:00:00]} 2. Nf3 {[%emt 0:00:00]} e6 {[%emt 0:00:00]} 3. d4 {[%emt 0:00:00]} cxd4 {[%emt 0:00:00]} 4. Nxd4 {[%emt 0:00:00]} a6 {[%emt 0:00:00]} 5. g3 {[%emt 0:00:00]} b5 {[%emt 0:00:00]} 6. Bg2 {[%emt 0:00:00] B41: Sicilian: Kan Variation: 5 c4} Bb7 {[%emt 0:00:00]} 7. O-O {[%emt 0:00:00]} Qc7 {[%emt 0:00:04]} (7... Nf6 8. Re1 Bc5 9. a4 b4 10. c3 Qc7 11. Nd2 d6 12. N2b3 bxc3 13. bxc3 Nbd7 {0-1 (52) Giri,A (2782)-Caruana,F (2804) Paris 2016}) 8. a4 {[%emt 0:04:31]} bxa4 {[%emt 0:01:03]} 9. Rxa4 {[%emt 0:00:18]} Nf6 {[%emt 0:00:27]} 10. Nd2 $146 {[%emt 0:03:23]} ({Predecessor:} 10. Nc3 Be7 11. Re1 d6 12. Qe2 O-O 13. Rc4 {0-1 (45) Glisic,T-Miljkovic,M (2172) Jagodina 2011}) 10... d5 {[%emt 0:01:57]} 11. Qe2 {[%emt 0:02:06]} Nbd7 {[%emt 0:01:43]} 12. exd5 {[%emt 0:09:26]} Nxd5 {[%emt 0:00:10]} 13. Bxd5 {[%emt 0:12:05]} Bxd5 {[%emt 0:00:06]} 14. Rxa6 {[%emt 0:01:23]} Rxa6 {[%emt 0:02:05]} 15. Qxa6 {[%emt 0:00:07]} Bc5 {[%emt 0:00:20]} 16. N2b3 {[%emt 0:11:14]} Bb6 {[%emt 0:03:02]} 17. Be3 {[%emt 0:20:44]} O-O {[%emt 0:00:41]} 18. Rd1 {[%emt 0:03:44]} Qe5 {[%emt 0:08:47]} 19. Qe2 {[%emt 0:04:08]} Rc8 {[%emt 0:04:49]} 20. Rd2 {[%emt 0:03:48]} Nc5 {[%emt 0:07:40]} 21. Nxc5 {[%emt 0:01:33]} Bxc5 {[%emt 0:00:10]} 22. c3 {[%emt 0:02:52]} Ra8 {[%emt 0:01:42]} 23. f3 {[%emt 0:01:46]} Ra1+ {[%emt 0:03:15]} 24. Kg2 {[%emt 0:00:48]} g5 {[%emt 0:11:36]} 25. h3 {[%emt 0:04:12]} h5 {[%emt 0:03:21]} 26. Nc2 {[%emt 0:04:59]} g4 {[%emt 0:01:47]} 27. hxg4 {[%emt 0:01:16]} hxg4 {[%emt 0:00:06]} 28. Rxd5 {[%emt 0:00:10]} exd5 {[%emt 0:05:24]} 29. Nxa1 {[%emt 0:00:08]} Qxe3 {[%emt 0:04:44]} 30. Qxe3 {[%emt 0:00:13]} Bxe3 {[%emt 0:00:03]} 31. Nb3 {[%emt 0:01:13]} Kg7 {[%emt 0:02:59]} 32. fxg4 {[%emt 0:00:47]} Kf6 {[%emt 0:00:05]} 33. Kf3 {[%emt 0:00:39]} Bb6 {[%emt 0:00:07]} 34. Nd4 {[%emt 0:00:53]} Ke5 {[%emt 0:00:22]} 35. Ke3 {[%emt 0:02:06]} f6 {[%emt 0:00:36]} 36. b4 {[%emt 0:00:19]} Ba7 {[%emt 0:00:49]} 37. b5 {[%emt 0:00:45]} Bb6 {[%emt 0:00:06]} 38. Kf3 {[%emt 0:03:31]} Bc7 {[%emt 0:01:37]} 39. Ke3 {[%emt 0:02:32]} Bb6 {[%emt 0:00:00]} 40. Kd3 {[%emt 0:00:09]} Bc7 {[%emt 0:01:48]} 41. Nf5 {[%emt 0:15:09]} Bb6 {[%emt 0:16:02]} 42. Ne7 {[%emt 0:01:36]} Bf2 {[%emt 0:02:56]} 43. Ke2 {[%emt 0:00:00]} Bc5 {[%emt 0:00:00]} 44. Nc6+ {[%emt 0:00:00]} Kd6 {[%emt 0:00:00]} 45. Kf3 {[%emt 0:01:50]} Ba3 {[%emt 0:00:00]} 46. Ke2 {[%emt 0:01:05]} Bc5 {[%emt 0:00:00]} 47. Kd3 {[%emt 0:00:29]} Bf2 {[%emt 0:00:00]} 48. Nb4 {[%emt 0:00:31]} Kc5 {[%emt 0:00:00]} 49. b6 {[%emt 0:00:12]} Kxb6 50. Nxd5+ Kc6 51. Nxf6 Bxg3 52. c4 Be5 53. g5 Kd6 $18 54. Ke4 Ke6 55. Nd5 Kd6 56. c5+ 1-0

[Event "3rd HSK Youth Summer 2018"]
[Site "Hamburg"]
[Date "2018.07.27"]
[Round "4"]
[White "Globus, Or"]
[Black "Shocron, Alon"]
[Result "1-0"]
[ECO "A62"]
[WhiteElo "2351"]
[BlackElo "1817"]
[Annotator "NA"]
[PlyCount "83"]
[EventDate "2018.07.26"]
[EventType "swiss"]
[EventCountry "GER"]
[SourceTitle "playchess.com"]
[Source "ChessBase"]
[SourceQuality "1"]
[TimeControl "40/5400+30:900+30"]

1. d4 {[%emt 0:00:00]} Nf6 {[%emt 0:00:14]} 2. c4 {[%emt 0:00:00]} e6 {[%emt 0:00:11]} 3. g3 {[%emt 0:00:19]} c5 {[%emt 0:00:36]} 4. d5 {[%emt 0:00:04]} exd5 {[%emt 0:00:06]} 5. cxd5 {[%emt 0:00:04]} d6 {[%emt 0:00:15]} 6. Nc3 {[%emt 0:00:31]} g6 {[%emt 0:00:16]} 7. Bg2 {[%emt 0:00:11]} Bg7 {[%emt 0:00:07]} 8. Nf3 {[%emt 0:00:05]} O-O {[%emt 0:00:37]} 9. O-O {[%emt 0:00:07]} Re8 {[%emt 0:05:15]} 10. Bf4 {[%emt 0:03:01]} Nh5 {[%emt 0:05:17]} 11. Bg5 {[%emt 0:06:58]} Qa5 {[%emt 0:03:18]} 12. Nd2 {[%emt 0:06:21]} h6 {[%emt 0:06:23]} 13. Be3 {[%emt 0:01:01]} f5 {[%emt 0:08:18]} (13... Nd7 $14) 14. a4 {[%emt 0:03:00]} ({Better is} 14. Nc4 $16 Qd8 15. Bf3) 14... a6 {[%emt 0:01:23]} (14... Bxc3 $142 15. bxc3 Qxc3) 15. Nc4 $16 {[%emt 0:03:50]} Qc7 {[%emt 0:00:55]} 16. Qd2 {[%emt 0:03:22]} g5 {[%emt 0:06:02]} 17. f4 {[%emt 0:05:12]} g4 {[%emt 0:05:59]} 18. Bf2 {[%emt 0:01:46]} Nd7 {[%emt 0:07:34]} 19. Rab1 {[%emt 0:07:19]} Nhf6 {[%emt 0:08:25]} 20. Qc2 {[%emt 0:02:30]} Rb8 {[%emt 0:01:23]} 21. Ne3 {[%emt 0:07:50]} b5 {[%emt 0:04:42]} 22. Nxf5 {[%emt 0:02:06]} b4 {[%emt 0:00:38]} 23. Nxg7 {[%emt 0:00:51]} Kxg7 {[%emt 0:00:11]} 24. Nd1 {[%emt 0:00:45]} b3 {[%emt 0:02:31]} 25. Qd3 {[%emt 0:05:55]} c4 {[%emt 0:05:22]} 26. Qd2 {[%emt 0:00:16]} Nc5 {[%emt 0:00:56]} 27. Nc3 {[%emt 0:00:39]} Bf5 {[%emt 0:00:47]} 28. Rbe1 {[%emt 0:00:33]} Nce4 {[%emt 0:05:46]} 29. Qd4 {[%emt 0:02:03]} Rb4 {[%emt 0:03:26]} 30. Nxe4 {[%emt 0:02:18]} Bxe4 {[%emt 0:00:21]} 31. Qc3 {[%emt 0:00:14]} Bxg2 {[%emt 0:02:24]} 32. Kxg2 {[%emt 0:00:22]} Rxa4 {[%emt 0:00:41]} 33. Bd4 {[%emt 0:00:33]} Rf8 {[%emt 0:01:39]} 34. e4 {[%emt 0:00:56]} Qa5 {[%emt 0:00:29]} 35. e5 {[%emt 0:09:25]} Qxd5+ {[%emt 0:01:36]} 36. Kg1 {[%emt 0:01:23]} Ne4 {[%emt 0:01:37]} 37. e6+ {[%emt 0:01:11]} Kg8 {[%emt 0:00:38]} 38. Qe3 {[%emt 0:00:58]} Nc5 {[%emt 0:01:21]} 39. e7 {[%emt 0:01:37]} Re8 {[%emt 0:00:13]} 40. f5 {[%emt 0:02:11]} Kf7 {[%emt 0:17:00]} 41. Bc3 {[%emt 0:18:19]} Qb7 {[%emt 0:03:17]} 42. Qxh6 1-0

[Event "3rd HSK Youth Summer 2018"]
[Site "Hamburg"]
[Date "2018.07.27"]
[Round "4"]
[White "Holinka, Henning"]
[Black "Zemach, Roee"]
[Result "0-1"]
[ECO "C55"]
[WhiteElo "2146"]
[BlackElo "2101"]
[Annotator "NA"]
[PlyCount "100"]
[EventDate "2018.07.26"]
[EventType "swiss"]
[EventCountry "GER"]
[SourceTitle "playchess.com"]
[Source "ChessBase"]
[SourceQuality "1"]
[TimeControl "40/5400+30:900+30"]

1. e4 e5 2. Nf3 Nc6 3. Bc4 Nf6 4. d3 Be7 5. O-O O-O 6. Re1 d6 7. a4 Na5 8. Ba2 c5 9. c3 Be6 10. b4 cxb4 11. cxb4 Nc6 12. Ba3 Bg4 13. h3 Bxf3 14. Qxf3 Nd4 15. Qd1 Rc8 16. Bc4 d5 17. exd5 Nxd5 18. Rxe5 Nxb4 19. Nc3 Ndc6 20. Re1 Bf6 21. Qb3 a5 22. Rac1 Bd4 23. Nd5 Qh4 24. Rf1 Rce8 25. Nxb4 axb4 26. Bxb4 Nxb4 27. Qxb4 Re2 28. Qxb7 Rxf2 29. Kh1 Qf4 30. Rfe1 Be5 31. Rxe5 Qxe5 32. Qe4 Qf6 33. Bb5 Rf1+ 34. Rxf1 Qxf1+ 35. Kh2 Qf6 36. h4 Qd6+ 37. Kh3 f5 38. Bc4+ Kh8 39. Qe6 Qd4 40. Qe7 Rb8 41. a5 Qa1 42. Qc7 Re8 43. a6 Qh1+ 44. Qh2 Re3+ 45. g3 Qd1 46. a7 Qg4+ 47. Kg2 Re2+ 48. Kg1 Re1+ 49. Kg2 Qe2+ 50. Kh3 Qf3 0-1

[Event "3rd HSK Youth Summer 2018"]
[Site "Hamburg"]
[Date "2018.07.27"]
[Round "4"]
[White "Meyling, Lennart"]
[Black "Ehrlich, Roy"]
[Result "1/2-1/2"]
[ECO "C02"]
[WhiteElo "2050"]
[BlackElo "1893"]
[Annotator "NA"]
[PlyCount "30"]
[EventDate "2018.07.26"]
[EventType "swiss"]
[EventCountry "GER"]
[SourceTitle "playchess.com"]
[Source "ChessBase"]
[SourceQuality "1"]
[TimeControl "40/5400+30:900+30"]

1. d4 {[%emt 0:00:00]} e6 {[%emt 0:00:04]} 2. e4 {[%emt 0:00:00]} d5 {[%emt 0:00:03]} 3. e5 {[%emt 0:00:00]} c5 {[%emt 0:00:04]} 4. c3 {[%emt 0:00:02]} Nc6 {[%emt 0:00:03]} 5. Ne2 {[%emt 0:00:06]} Nge7 {[%emt 0:02:11]} 6. g3 {[%emt 0:00:49]} Nf5 {[%emt 0:01:26]} 7. Bh3 {[%emt 0:00:35]} g6 {[%emt 0:08:15]} 8. f4 {[%emt 0:00:57]} c4 {[%emt 0:03:10]} 9. O-O {[%emt 0:01:41]} Bd7 {[%emt 0:05:00]} 10. b3 {[%emt 0:02:47]} b5 {[%emt 0:05:27]} 11. Bxf5 {[%emt 0:04:26]} gxf5 12. Ba3 {[%emt 0:01:13]} Qb6 {[%emt 0:07:00]} 13. Bxf8 {[%emt 0:01:42]} Kxf8 {[%emt 0:00:29]} 14. Na3 {[%emt 0:00:26]} Rb8 {[%emt 0:09:47]} 15. b4 {[%emt 0:07:00]} Ke8 1/2-1/2